bitfinex/quotes_ETHUSD_20251107
["timestamp","ask_amount","ask_price","bid_price","bid_amount"]
[1762545179831,0.1448,3441.6,3441.3,2.90579992]
[1762545180065,0.1448,3441.6,3441.1,0.0725]
[1762545180235,0.1448,3441.6,3441.5,2.90570971]
[1762545180436,0.002,3441.8,3441.7,2.90554086]
[1762545180635,0.002,3441.8,3441.7,3.36444086]
[1762545180872,0.002,3441.8,3441.7,3.85364086]
[1762545181048,0.002,3441.8,3441.7,3.88269626]
[1762545181356,0.002,3441.8,3441.7,5.14240826]
[1762545181562,1e-08,3442.2,3442.1,4.77301521]
[1762545181888,0.005,3442.9,3442.4,4.16466203]
[1762545182071,1e-08,3442.9,3442.8,11.00516144]
[1762545182444,1e-08,3442.9,3442.8,11.45616144]
[1762545183367,0.005,3443.9,3442.8,8.95705292]
[1762545183570,0.005,3443.9,3443.7,9.89739033]
[1762545183756,0.002,3444.2,3444.1,2.90351615]
[1762545183956,0.002,3444.2,3444.1,3.35461615]
[1762545184466,0.002,3444.2,3444.1,3.80561615]
[1762545184984,0.002,3444.2,3444.1,2.90351615]
[1762545185983,0.002,3444.2,3443.9,2.90362306]
[1762545186197,0.002,3444.2,3444.0,2.90353825]
[1762545186552,0.002,3444.2,3444.1,2.90351615]
[1762545188001,0.9232,3444.2,3443.4,1.420212]
[1762545188283,0.4659,3444.2,3444.1,2.90351615]
[1762545188490,0.002,3444.2,3444.1,2.90351615]
[1762545188692,0.002,3444.2,3444.1,3.35461615]
[1762545188864,0.9232,3444.2,3443.4,0.1605]
[1762545189057,0.9232,3444.2,3443.7,2.90378717]
[1762545189390,0.3119,3443.8,3442.9,2.90446978]
[1762545189590,0.7692,3443.8,3442.8,1.259712]
[1762545189903,0.7692,3443.8,3442.5,9.28674201]
[1762545190199,0.7692,3443.8,3442.8,1.259712]
[1762545190402,0.48652368,3443.7,3442.2,2.90510338]
[1762545190689,0.405504,3443.6,3443.0,2.90442984]
[1762545190992,0.405504,3443.6,3442.4,2.90495003]
[1762545190993,0.1961,3443.8,3442.4,0.451]
[1762545191196,0.1961,3443.8,3443.7,2.90385341]
[1762545191488,0.405504,3443.7,3442.1,0.1542]
[1762545191686,0.3098,3443.2,3443.0,2.90444306]
[1762545191893,0.3098,3443.2,3443.0,2.90443284]
[1762545192052,0.3098,3443.2,3442.3,2.90503442]
[1762545192053,0.4546,3443.2,3443.1,2.90435944]
[1762545192470,0.4546,3443.2,3443.0,2.90439154]
[1762545192674,0.4546,3443.2,3443.1,2.90435944]
[1762545193071,0.1448,3443.2,3443.1,2.90435944]
[1762545193254,0.1961,3443.8,3443.1,0.7451]
[1762545193454,0.6021,3443.7,3443.2,2.90420315]
[1762545193655,0.6021,3443.7,3443.3,2.90418641]
[1762545194165,0.6021,3443.7,3442.7,2.90465225]
[1762545194166,0.4639,3443.4,3442.3,4.16474642]
[1762545194401,0.4573,3443.6,3442.1,3.9442]
[1762545194402,0.1448,3443.3,3443.2,2.90427509]
[1762545194699,0.6087,3443.3,3442.7,3.04949494]
[1762545194887,0.6087,3443.3,3442.8,2.90461252]
[1762545195197,0.1448,3443.0,3442.9,2.90452815]
[1762545196101,0.862804,3443.7,3442.9,2.90452815]
[1762545196102,0.405504,3443.6,3443.1,2.90430122]
[1762545196303,0.1448,3443.3,3443.0,2.90444379]
[1762545196523,0.1448,3443.3,3442.9,2.90451167]
[1762545196719,0.4573,3443.2,3442.9,2.90451167]
[1762545197019,0.4573,3443.2,3443.0,2.90444265]
[1762545197432,0.1448,3443.3,3443.0,2.90444265]
[1762545197640,0.1448,3443.3,3442.7,0.1448]
[1762545197641,0.4639,3443.1,3442.7,0.1448]
[1762545197788,0.1448,3443.0,3442.7,2.90469689]
[1762545197983,0.1448,3443.0,3442.9,2.90452815]
[1762545198396,0.1448,3443.4,3443.2,2.90420706]
[1762545198602,0.1448,3443.4,3443.3,2.90419074]
[1762545198787,0.1448,3443.4,3443.2,2.90424599]
[1762545198989,0.1448,3443.4,3442.8,0.1448]
[1762545199339,0.66,3442.9,3442.3,0.001]
[1762545199505,0.3098,3442.7,3442.4,2.90492938]
[1762545199841,0.1448,3442.9,3442.8,2.90461252]
[1762545199987,0.4573,3443.4,3442.7,2.90468206]
[1762545200187,0.66,3442.8,3442.6,0.001]
[1762545200390,0.3098,3442.7,3442.6,0.001]
[1762545200591,0.7671,3442.7,3442.6,0.001]
[1762545201338,0.3098,3442.7,3442.6,0.001]
[1762545201848,0.7671,3442.7,3442.6,0.001]
[1762545202135,0.405504,3443.1,3442.6,0.001]
[1762545202432,0.4639,3442.7,3442.6,0.001]
[1762545202601,0.8660863,3442.7,3442.6,0.001]
[1762545202799,0.9212,3442.7,3442.6,0.001]
[1762545203729,0.1717012,3443.3,3442.6,0.4521]
[1762545204043,6.6831,3444.9,3443.4,2.90402246]
[1762545204044,0.4573,3443.9,3443.4,2.90402246]
[1762545204255,0.6534,3443.8,3442.9,0.02904528]
[1762545204452,0.6534,3443.8,3443.5,2.90400475]
[1762545204663,0.1961,3443.8,3442.7,2.90469689]
[1762545204804,0.1961,3446.1,3444.1,2.90351615]
[1762545204805,0.4573,3444.8,3444.1,2.90351615]
[1762545205006,0.4573,3445.2,3444.1,3.35461615]
[1762545205407,3.35994673,3445.2,3444.1,3.35461615]
[1762545205608,3.09868332,3445.1,3444.1,3.35461615]
[1762545206248,0.196,3445.1,3444.1,3.35461615]
[1762545206484,3.09867903,3445.1,3444.1,3.35461615]
[1762545206650,0.6604,3444.9,3444.1,2.90351615]
[1762545206824,0.4659,3444.2,3443.2,1.259712]
[1762545207020,0.002,3444.2,3444.1,2.90351615]
[1762545207843,0.002,3444.2,3444.1,3.35461615]
[1762545208915,0.002,3444.2,3444.1,2.90351615]
[1762545210012,0.45048572,3444.8,3444.4,2.90326326]
[1762545210443,0.4639,3444.5,3444.1,0.1448]
[1762545210647,0.3098,3444.3,3444.2,2.90343185]
[1762545211111,0.1448,3444.7,3444.4,2.90323028]
[1762545211317,0.1448,3444.7,3444.5,2.90317571]
[1762545211609,0.1448,3444.7,3444.6,2.90309469]
[1762545212209,0.1448,3444.7,3444.5,2.90314829]
[1762545212414,0.1448,3444.7,3444.6,2.90309469]
[1762545214563,0.1448,3444.7,3444.1,0.1448]
[1762545214564,1.0937,3444.7,3444.1,0.1448]
[1762545214747,0.2756,3444.5,3444.1,0.1448]
[1762545215385,0.4912,3444.2,3443.4,0.1492]
[1762545215513,0.2778,3443.9,3442.6,0.4658]
[1762545215715,0.2778,3443.9,3443.7,2.90378715]
[1762545216016,0.2778,3443.9,3443.5,2.90395389]
[1762545216017,0.1989,3443.8,3443.5,2.90395389]
[1762545216264,0.1989,3443.8,3443.4,2.90407698]
[1762545216431,0.6544,3443.8,3443.5,2.9040104]
[1762545216750,0.6544,3443.8,3442.6,1.725512]
[1762545216751,0.4934,3443.6,3442.6,0.4658]
[1762545216915,0.4934,3443.6,3442.6,0.001]
[1762545217108,0.4555,3443.5,3442.6,0.001]
[1762545217312,0.4934,3443.6,3443.3,2.90412571]
[1762545217513,0.405504,3443.7,3443.3,2.90412571]
[1762545217713,0.4934,3443.4,3443.2,2.90425129]
[1762545218144,0.1989,3443.8,3443.4,2.90402597]
[1762545218549,0.1989,3443.8,3442.7,2.90469689]
[1762545218847,0.604404,3444.0,3443.4,2.90405059]
[1762545219085,1.864116,3444.0,3443.4,2.90405059]
[1762545219374,0.4555,3443.9,3443.5,2.90395785]
[1762545219574,0.4555,3443.9,3443.3,2.90418263]
[1762545219575,0.4934,3443.6,3443.3,2.90418263]
[1762545219773,0.2728,3443.4,3443.3,2.90418263]
[1762545219973,0.4555,3443.9,3443.5,2.9039861]
[1762545220173,0.4934,3443.6,3442.9,2.90449566]
[1762545220470,0.97780966,3443.9,3442.6,0.4658]
[1762545220677,0.4555,3443.9,3443.4,2.90402305]
[1762545220892,0.4737,3443.8,3442.6,3.791]
[1762545221071,0.4737,3443.8,3443.4,2.90410467]
[1762545221282,3.30208255,3443.7,3443.1,2.90430044]
[1762545221583,0.4993,3443.2,3443.1,2.90430044]
[1762545221968,0.4737,3443.6,3443.3,2.90410958]
[1762545222175,0.4737,3443.6,3443.2,2.9042533]
[1762545222363,0.4737,3443.6,3443.1,2.90429847]
[1762545222883,0.4737,3443.6,3443.0,0.5]
[1762545222884,0.4993,3443.2,3443.0,0.5]
[1762545223063,3.55876344,3443.1,3443.0,0.5]
[1762545223455,4.03246344,3443.1,3443.0,0.5]
[1762545224076,4.06168712,3443.1,3443.0,0.5]
[1762545224451,4.03246344,3443.1,3443.0,0.5]
[1762545224655,4.72612943,3443.1,3443.0,0.5]
[1762545225506,1.82176999,3443.1,3443.0,0.5]
[1762545225711,4.72612943,3443.1,3443.0,0.5]
[1762545226015,1.82176999,3443.1,3443.0,0.5]
[1762545226178,1.128104,3443.1,3443.0,0.5]
[1762545227671,0.2489,3443.1,3443.0,0.5]
[1762545227890,0.4993,3443.1,3443.0,0.5]
[1762545228233,0.405504,3443.4,3443.0,0.5]
[1762545228391,0.4993,3443.1,3443.0,0.5]
[1762545228913,0.4737,3443.3,3443.0,3.40444379]
[1762545229126,0.4737,3443.3,3443.0,0.5]
[1762545229328,0.4993,3443.1,3443.0,0.5]
[1762545229885,0.973,3443.1,3443.0,0.5]
[1762545230127,0.37832435,3443.3,3443.0,0.5]
[1762545230332,3.10255376,3444.0,3443.0,0.5]
[1762545230333,0.1989,3444.0,3443.0,0.5]
[1762545230515,0.1448,3443.3,3443.0,0.5]
[1762545230914,0.6185,3443.3,3443.0,3.40442933]
[1762545231722,0.4993,3443.1,3443.0,0.5]
[1762545232188,2.90400726,3443.6,3443.0,0.5]
[1762545232189,0.405504,3443.5,3443.0,0.5]
[1762545232390,0.879204,3443.5,3443.0,0.5]
[1762545232621,0.405504,3443.4,3443.0,0.5]
[1762545232923,0.879204,3443.4,3443.0,3.40443413]
[1762545233136,0.879204,3443.4,3443.0,0.5]
[1762545233336,0.405504,3443.3,3443.0,0.5]
[1762545233632,0.879204,3443.3,3443.0,0.5]
[1762545233925,0.879204,3443.3,3443.1,2.90435845]
[1762545234096,0.405504,3443.6,3443.1,2.90430767]
[1762545234422,0.5807762,3443.5,3443.2,2.90423644]
[1762545234625,0.879204,3443.6,3443.2,2.90423644]
[1762545234825,2.90349964,3444.2,3443.0,0.5]
[1762545235127,0.1448,3443.3,3443.2,2.90427509]
[1762545235646,0.1448,3443.3,3443.2,3.43151784]
[1762545235800,0.1448,3443.8,3443.2,3.90446589]
[1762545235993,0.1448,3443.8,3443.5,2.90396273]
[1762545236189,0.1448,3443.8,3443.2,0.643]
[1762545236385,0.1448,3443.8,3443.7,2.90385341]
[1762545236626,0.1448,3443.8,3443.7,3.40205341]
[1762545237314,0.4757,3444.5,3444.2,2.90338725]
[1762545237315,0.002,3444.5,3444.2,2.90338725]
[1762545237515,0.6185,3444.4,3443.7,0.1448]
[1762545237840,0.1448,3444.0,3443.9,2.90368477]
[1762545238043,0.1448,3444.0,3443.8,2.90374219]
[1762545238247,0.1448,3444.0,3443.4,0.1448]
[1762545238742,0.1934,3443.9,3443.5,2.90402207]
[1762545238920,0.1448,3443.8,3443.6,2.90391105]
[1762545239643,0.1448,3443.8,3443.2,0.1448]
[1762545239644,0.4993,3443.7,3443.5,2.90402133]
[1762545239873,0.4993,3443.7,3443.6,2.90393773]
[1762545240138,0.6185,3443.8,3443.2,0.1448]
[1762545240139,0.1448,3443.8,3443.5,2.90398934]
[1762545240710,0.1448,3443.8,3443.6,2.90392092]
[1762545240912,0.6185,3443.8,3443.5,2.90400137]
[1762545241409,0.6185,3443.8,3443.2,0.1448]
[1762545241410,0.6185,3443.8,3443.6,2.90390361]
[1762545241610,0.1448,3443.8,3443.7,2.90385341]
[1762545241807,0.407504,3444.5,3443.7,0.4982]
[1762545242029,0.1448,3444.1,3444.0,2.90360046]
[1762545242246,0.002,3444.5,3444.3,2.9032874]
[1762545242549,0.1448,3444.4,3444.2,2.90339898]
[1762545242760,0.1448,3444.4,3444.3,2.90334755]
[1762545242963,0.002,3444.5,3444.3,2.90334755]
[1762545242964,0.002,3444.5,3444.4,2.90326326]
[1762545243111,0.002,3444.5,3444.4,3.42139589]
[1762545243517,0.002,3444.5,3444.4,3.88499589]
[1762545243848,0.002,3444.5,3444.4,4.00076326]
[1762545245173,0.002,3444.5,3444.1,2.90350763]
[1762545245174,0.9739,3444.5,3444.1,2.90350763]
[1762545245380,0.2695,3444.4,3444.2,2.90335685]
[1762545245537,0.7567,3444.4,3444.2,2.90335685]
[1762545245862,0.4825,3444.3,3444.2,2.90335685]
[1762545246061,0.002,3444.5,3444.4,2.90326326]
[1762545246560,0.002,3444.5,3444.3,2.90333139]
[1762545246761,0.002,3444.5,3444.4,2.90326326]
[1762545247161,0.002,3444.5,3444.2,2.9033715]
[1762545247363,0.4847,3444.3,3443.0,0.9646]
[1762545247592,0.4847,3444.3,3444.0,2.90359505]
[1762545247876,0.002,3444.5,3444.1,2.90351615]
[1762545248038,0.002,3444.5,3444.2,2.90341057]
[1762545248233,0.002,3444.5,3444.1,2.90345732]
[1762545248563,0.002,3444.5,3444.4,3.39236326]
[1762545248764,0.002,3444.5,3444.1,0.29034573]
[1762545249084,0.002,3444.5,3444.4,2.90326326]
[1762545251053,0.002,3444.5,3444.4,3.85596326]
[1762545252270,0.002,3444.5,3444.4,3.39236326]
[1762545253542,0.002,3444.5,3444.4,3.85596326]
[1762545253743,0.002,3444.5,3444.4,3.39236326]
[1762545255283,0.002,3444.5,3444.4,0.1448]
[1762545255472,0.4867,3444.5,3444.4,2.90326326]
[1762545255671,0.002,3444.5,3444.4,2.90326326]
[1762545256077,0.4867,3444.5,3444.4,2.90326326]
[1762545256788,0.002,3444.5,3444.4,2.90326326]
[1762545262320,0.002,3444.5,3444.4,3.85596326]
[1762545262608,0.002,3444.5,3444.4,4.02979589]
[1762545262818,0.002,3444.5,3444.4,4.00076326]
[1762545265842,0.002,3444.5,3444.4,3.53716326]
[1762545267119,0.4867,3444.5,3444.4,3.04806326]
[1762545267282,0.002,3444.5,3444.4,3.04806326]
[1762545267613,0.9739,3444.5,3444.4,2.90326326]
[1762545268098,0.1448,3444.4,3444.1,0.001]
[1762545268302,0.4847,3444.2,3444.1,0.001]
[1762545268506,5.44398335,3444.2,3444.1,0.001]
[1762545268701,5.93118335,3444.2,3444.1,0.001]
[1762545268900,3.30918877,3443.9,3443.8,0.001]
[1762545269098,5.24040077,3443.9,3443.8,0.001]
[1762545269301,0.405504,3443.7,3443.0,0.001]
[1762545269508,0.275,3443.1,3443.0,0.001]
[1762545269678,0.7622,3443.1,3443.0,0.001]
[1762545270787,0.4872,3443.7,3443.0,0.001]
[1762545270988,0.4872,3443.7,3443.3,2.90417975]
[1762545271588,0.189,3443.9,3443.6,2.90393773]
[1762545271813,0.189,3443.9,3443.5,2.90399562]
[1762545272113,0.6762,3443.9,3443.5,2.90399562]
[1762545272310,0.8697912,3443.9,3443.4,2.90409035]
[1762545272519,0.2674,3443.3,3443.0,0.001]
[1762545272812,0.2674,3443.3,3443.1,2.90429368]
[1762545273015,0.4928,3443.5,3443.2,2.90427509]
[1762545273186,0.4928,3443.5,3443.0,0.001]
[1762545273520,0.4634,3443.1,3443.0,2.90544379]
[1762545274012,0.4928,3443.5,3443.2,0.001]
[1762545274219,1.259712,3443.7,3443.2,0.001]
[1762545274220,0.4928,3443.4,3443.2,0.001]
[1762545274415,0.4634,3443.3,3443.2,0.001]
[1762545274814,2.158016,3443.8,3443.2,0.001]
[1762545275117,0.405504,3443.6,3443.2,0.001]
[1762545275513,0.4928,3443.5,3443.2,0.001]
[1762545276045,0.4634,3443.3,3443.2,0.001]
[1762545276411,1.361704,3443.3,3443.2,0.001]
[1762545277717,0.9562,3443.3,3443.2,0.001]
[1762545278317,0.4634,3443.3,3443.2,0.001]
[1762545280211,1.101,3443.3,3443.2,0.001]
[1762545280533,5.26490274,3443.3,3443.2,0.001]
[1762545280712,6.08472534,3443.3,3443.2,0.001]
[1762545281556,3.1805346,3443.3,3443.2,0.001]
[1762545281857,2.360712,3443.3,3443.2,0.001]
[1762545282558,5.26490274,3443.3,3443.2,0.001]
[1762545282710,2.766216,3443.3,3443.2,0.001]
[1762545283342,5.67040674,3443.3,3443.2,0.001]
[1762545283843,2.766216,3443.3,3443.2,0.001]
[1762545284043,0.8488912,3443.9,3443.2,0.4787]
[1762545284377,0.6553,3443.9,3443.3,2.90410761]
[1762545284536,0.405504,3443.8,3443.3,2.90410761]
[1762545284980,0.6553,3443.9,3443.2,0.001]
[1762545284981,0.6553,3443.9,3443.2,2.93430853]
[1762545285178,0.405504,3444.3,3443.2,0.03004275]
[1762545285179,0.4663,3444.3,3443.2,0.03004275]
[1762545285383,0.4809,3443.3,3443.2,0.001]
[1762545286031,0.4663,3443.7,3443.2,0.001]
[1762545286359,0.4809,3443.3,3443.2,0.001]
[1762545286674,3.79059474,3443.3,3443.2,0.001]
[1762545286848,4.28061842,3443.3,3443.2,0.001]
[1762545287365,5.54033042,3443.3,3443.2,0.001]
[1762545288175,5.51110674,3443.3,3443.2,0.001]
[1762545288332,6.35261994,3443.3,3443.2,0.001]
[1762545289434,2.9876292,3443.3,3443.2,0.001]
[1762545289643,1.740612,3443.3,3443.2,0.001]
[1762545289841,2.201412,3443.3,3443.2,0.001]
[1762545290060,1.259712,3443.3,3443.2,0.001]
[1762545290456,1.757812,3443.3,3443.2,0.001]
[1762545291176,2.218612,3443.3,3443.2,0.001]
[1762545291379,5.75016794,3443.3,3443.2,0.001]
[1762545291572,5.77939162,3443.3,3443.2,0.001]
[1762545292098,5.75016794,3443.3,3443.2,0.001]
[1762545293080,2.8459772,3443.3,3443.2,0.001]
[1762545293276,5.75016794,3443.3,3443.2,0.001]
[1762545293990,2.8459772,3443.3,3443.2,0.001]
[1762545294193,1.9796732,3443.3,3443.2,0.001]
[1762545296295,1.4815732,3443.3,3443.2,0.001]
[1762545296500,1.259712,3443.3,3443.2,0.4678]
[1762545297394,0.1448,3443.4,3443.2,3.83951353]
[1762545297602,0.1448,3443.4,3443.2,0.4678]
[1762545297816,0.002,3443.8,3443.7,2.90385341]
[1762545298121,0.002,3443.8,3443.7,3.83815341]
[1762545298741,0.002,3444.8,3443.7,10.21779921]
[1762545298882,0.002,3444.8,3444.4,3.37006326]
[1762545299283,0.002,3444.8,3444.4,3.83756326]
[1762545300681,0.002,3444.8,3443.9,0.4675]
[1762545300902,0.002,3444.8,3444.4,2.90326326]
[1762545301186,0.002,3444.8,3444.4,3.66038959]
[1762545301419,0.002,3444.8,3444.4,4.12788959]
[1762545304331,0.002,3444.8,3444.4,7.91788959]
[1762545307746,0.002,3444.8,3444.4,8.06268959]
[1762545308430,0.002,3444.8,3444.4,9.32240159]
[1762545308987,0.002,3444.8,3444.4,9.72790559]
[1762545309250,1e-08,3444.9,3444.8,2.90292614]
[1762545309428,1e-08,3444.9,3444.8,14.79398394]
[1762545309633,1e-08,3444.9,3444.8,15.42578394]
[1762545310198,0.005,3445.9,3445.1,4.16238536]
[1762545310438,0.005,3445.9,3445.1,4.76961209]
[1762545310637,0.005,3445.9,3445.1,5.37238536]
[1762545310995,0.002,3445.3,3445.1,5.37238536]
[1762545313133,0.002,3445.3,3445.1,3.04747336]
[1762545313314,0.002,3445.3,3445.1,3.50917336]
[1762545313811,0.002,3445.3,3445.1,3.04040336]
[1762545314344,0.002,3445.3,3445.1,0.1448]
[1762545314645,0.002,3445.3,3445.1,3.04747336]
[1762545315400,0.002,3445.3,3445.1,0.1448]
[1762545315916,0.002,3445.3,3445.1,3.04747336]
[1762545316650,0.002,3445.3,3445.1,3.07650009]
[1762545316804,0.002,3445.3,3445.1,3.50917336]
[1762545317034,0.002,3445.3,3445.1,3.99617336]
[1762545317780,0.002,3445.3,3445.1,3.85137336]
[1762545319065,0.002,3445.3,3445.1,3.36437336]
[1762545319569,0.4795,3445.2,3444.4,0.1165]
[1762545319740,0.9567,3445.2,3444.2,1.259712]
[1762545319947,0.4772,3445.1,3444.7,2.90298956]
[1762545320154,0.002,3445.2,3444.2,1.746712]
[1762545320362,0.4792,3445.2,3444.8,2.90284856]
[1762545320743,0.002,3445.2,3444.4,0.487]
[1762545321062,0.002,3445.2,3445.1,2.90267336]
[1762545321432,0.002,3445.2,3445.1,3.36437336]
[1762545322163,0.002,3445.2,3445.1,2.90267336]
[1762545322364,0.4795,3445.2,3445.1,2.90267336]
[1762545322972,0.4795,3445.2,3444.5,0.33904319]
[1762545323273,0.4795,3445.2,3444.0,2.90356902]
[1762545323274,0.2745,3445.0,3444.9,2.90284188]
[1762545323580,0.2745,3445.0,3444.2,1.259712]
[1762545323740,0.2745,3445.0,3444.5,2.90309854]
[1762545323741,0.1902,3444.9,3444.5,2.90309854]
[1762545323932,0.1902,3444.9,3443.8,0.001]
[1762545324173,0.6177,3443.9,3443.8,0.001]
[1762545324374,1.023204,3443.9,3443.8,0.001]
[1762545324560,4.82598492,3443.9,3443.8,0.001]
[1762545324747,4.79676124,3443.9,3443.8,0.001]
[1762545324949,1.89307647,3443.9,3443.8,0.001]
[1762545325267,1.500404,3443.9,3443.8,0.001]
[1762545325664,1.0949,3443.9,3443.8,0.001]
[1762545325967,0.405504,3444.3,3443.8,0.001]
[1762545326169,0.4772,3444.2,3443.8,2.90476318]
[1762545326571,0.6677,3443.9,3443.8,0.001]
[1762545326975,1.1449,3443.9,3443.8,0.001]
[1762545327647,0.882704,3444.3,3443.8,2.90469568]
[1762545327854,0.1448,3444.0,3443.9,2.90367974]
[1762545328076,0.4772,3444.2,3443.9,2.90367974]
[1762545328377,0.622,3444.2,3443.9,2.90367974]
[1762545328677,0.622,3444.2,3443.8,0.001]
[1762545328678,0.002,3444.5,3444.2,2.90336863]
[1762545328852,0.002,3444.5,3444.0,0.1448]
[1762545329048,0.3418,3444.1,3443.8,2.90470597]
[1762545329240,0.6663,3443.9,3443.8,3.04956909]
[1762545329440,0.6663,3443.9,3443.8,0.1458]
[1762545329672,0.6663,3443.9,3443.8,3.04956909]
[1762545329970,1.1435,3443.9,3443.8,0.1458]
[1762545330191,1.1435,3443.9,3443.8,0.001]
[1762545330949,0.6663,3443.9,3443.8,0.001]
[1762545331167,1.1435,3443.9,3443.8,0.001]
[1762545331341,1.1435,3443.9,3443.8,2.90476909]
[1762545331551,1.1435,3443.9,3443.8,0.001]
[1762545331760,4.45268877,3443.9,3443.8,0.001]
[1762545331982,2.28463197,3443.9,3443.8,0.001]
[1762545332189,1.549004,3443.9,3443.8,0.001]
[1762545332712,4.45268877,3443.9,3443.8,0.001]
[1762545332880,1.549004,3443.9,3443.8,0.001]
[1762545333288,4.48191245,3443.9,3443.8,0.001]
[1762545333882,5.74162445,3443.9,3443.8,0.001]
[1762545334195,6.89650435,3443.9,3443.8,0.001]
[1762545334401,6.86728067,3443.9,3443.8,0.001]
[1762545334602,3.30952607,3443.5,3443.4,0.001]
[1762545334794,4.94156175,3443.5,3443.4,0.001]
[1762545335020,4.56957544,3443.1,3443.0,0.001]
[1762545335175,6.27088826,3443.1,3443.0,0.001]
[1762545335384,6.27088826,3443.1,3442.3,0.001]
[1762545335385,0.405504,3442.8,3442.3,0.001]
[1762545335714,2.784516,3442.7,3442.3,0.001]
[1762545336387,0.73208914,3443.1,3442.3,0.001]
[1762545336388,0.1805,3443.0,3442.6,2.90571733]
[1762545336591,0.1448,3442.9,3442.6,2.90571733]
[1762545336810,0.1448,3442.9,3442.6,2.90574965]
[1762545337015,0.4814,3442.7,3442.6,0.001]
[1762545337320,0.886904,3442.7,3442.6,0.001]
[1762545337521,1.50245677,3442.7,3442.6,0.001]
[1762545338687,4.40715366,3442.7,3442.6,0.001]
[1762545339083,1.50245677,3442.7,3442.6,0.001]
[1762545339282,4.40715366,3442.7,3442.6,0.001]
[1762545339488,1.50245677,3442.7,3442.6,0.001]
[1762545340316,4.40715366,3442.7,3442.6,0.001]
[1762545340822,5.66686566,3442.7,3442.6,0.001]
[1762545341788,2.76216877,3442.7,3442.6,0.001]
[1762545343322,0.1805,3443.0,3442.6,0.001]
[1762545343523,0.6682,3443.0,3442.6,0.001]
[1762545344022,0.867204,3442.7,3442.6,0.001]
[1762545344391,1.354904,3442.7,3442.6,0.001]
[1762545347227,5.51931289,3442.7,3442.6,0.001]
[1762545347408,6.38287717,3442.7,3442.6,0.001]
[1762545351426,3.31045403,3442.4,3442.3,0.001]
[1762545351625,3.64677771,3442.4,3442.3,0.001]
[1762545351827,5.39418971,3442.4,3442.3,0.001]
[1762545352352,4.57025042,3442.3,3442.2,0.001]
[1762545352573,6.80508043,3442.3,3442.2,0.001]
[1762545353429,2.90511881,3442.2,3442.1,0.005]
[1762545353638,5.39585849,3442.2,3442.1,0.005]
[1762545356454,4.57041921,3442.1,3442.0,1e-08]
[1762545356765,5.51681921,3442.1,3442.0,1e-08]
[1762545356991,6.89462372,3442.1,3442.0,1e-08]
[1762545357268,6.77820946,3442.1,3442.0,1e-08]
[1762545360963,4.57117903,3441.2,3441.1,0.005]
[1762545361141,5.02837903,3441.2,3441.1,0.005]
[1762545361463,5.51607903,3441.2,3441.1,0.005]
[1762545361667,2.98443117,3441.2,3441.1,0.005]
[1762545361868,5.51607903,3441.2,3441.1,0.005]
[1762545362285,5.54530271,3441.2,3441.1,0.005]
[1762545363366,1.259712,3441.2,3441.1,0.5962]
[1762545363678,1.259712,3441.2,3441.1,1.06]
[1762545364250,0.405504,3441.8,3441.1,1.06]
[1762545364251,0.4827,3442.4,3441.1,1.06]
[1762545364489,0.1448,3441.4,3441.3,3.38050687]
[1762545364665,0.1448,3441.4,3441.3,3.84430687]
[1762545364865,0.1448,3441.7,3441.3,0.9385]
[1762545365088,0.1448,3441.7,3441.4,0.4638]
[1762545365304,0.1448,3441.7,3441.6,0.4747]
[1762545365819,0.1448,3441.7,3441.6,3.84412529]
[1762545365956,3.05152777,3442.7,3441.7,2.90546852]
[1762545366151,2.90485086,3442.6,3441.7,3.36928991]
[1762545366353,1.261712,3442.7,3441.8,0.4638]
[1762545366557,2.90478126,3442.6,3441.8,0.4638]
[1762545366757,2.90478126,3442.6,3441.8,3.36924488]
[1762545367094,0.405504,3442.3,3441.5,0.4638]
[1762545367295,2.90504633,3442.3,3441.5,0.4638]
[1762545367596,3.82228216,3442.6,3441.1,0.1215]
[1762545367597,2.90534819,3442.0,3441.1,0.5853]
[1762545367797,0.70701968,3441.9,3441.2,3.36974746]
[1762545367959,3.61245342,3441.9,3441.2,0.4638]
[1762545368490,0.405504,3442.0,3441.8,0.4747]
[1762545368690,3.3107961,3442.0,3441.8,0.4747]
[1762545369104,1.259712,3442.0,3441.9,0.4747]
[1762545369276,0.405504,3442.6,3441.9,0.9385]
[1762545369469,0.407504,3442.7,3442.1,0.4747]
[1762545369715,0.405504,3442.4,3441.8,0.1527]
[1762545369930,2.90509429,3442.3,3441.8,0.1527]
[1762545370231,1.78254966,3442.3,3441.8,0.1527]
[1762545370416,3.42788252,3442.3,3441.8,0.6165]
[1762545370746,4.68759452,3442.3,3441.8,0.6165]
[1762545370920,1.78254966,3442.3,3441.8,0.6165]
[1762545371122,1.259712,3442.3,3442.2,0.4747]
[1762545371714,1.259712,3442.3,3442.2,0.9385]
[1762545371908,1.259712,3442.3,3441.8,0.1527]
[1762545372135,1.259712,3442.3,3442.2,0.4747]
[1762545372333,1.259712,3442.3,3441.8,3.05815595]
[1762545372608,1.259712,3442.3,3441.9,0.4638]
[1762545372813,1.96666972,3442.3,3441.8,0.1527]
[1762545373040,4.16474684,3442.3,3441.8,0.1527]
[1762545373239,1.259712,3442.3,3441.9,0.4638]
[1762545373466,0.4827,3442.2,3441.3,2.90586016]
[1762545373668,0.4827,3442.2,3441.5,2.90568918]
[1762545373973,1.259712,3442.3,3441.6,2.90556935]
[1762545374174,2.01493084,3442.3,3441.6,2.90556935]
[1762545374376,2.90512146,3442.2,3441.5,2.9056605]
[1762545374680,2.90512146,3442.2,3441.4,2.9057667]
[1762545374853,2.90526639,3442.1,3441.4,2.90574591]